fUSD/lending_fUSD_20260127
["ID","MTS","AMOUNT","RATE_DAILY","PERIOD"]
[403774672,1769532651602,-172.27,0.00042603,30]
[403774674,1769532651615,-468.85,0.00042603,30]
[403774676,1769532651626,-172.27,0.00042603,30]
[403774679,1769532651639,-468.85,0.00042603,30]
[403774681,1769532651652,-153.1,0.00042603,30]
[403774683,1769532651665,-468.85,0.00042603,30]
[403774686,1769532651677,-468.85,0.00042603,30]
[403774688,1769532651690,-2831.0,0.0004266,16]
[403774690,1769532651704,-2831.0,0.00042697,16]
[403774693,1769532651718,-200.0,0.000427,15]
[403774695,1769532651731,-152.0,0.000428,120]
[403774698,1769532651744,-637.0,0.000428,15]
[403774700,1769532651757,-500.0,0.00042876,120]
[403774702,1769532651770,-500.0,0.00042876,120]
[403774705,1769532651782,-500.0,0.00042876,120]
[403774707,1769532651795,-500.0,0.00042876,120]
[403774709,1769532651808,-500.0,0.00042876,120]
[403774712,1769532651821,-500.0,0.00042876,120]
[403774714,1769532651835,-500.0,0.00042876,120]
[403774717,1769532651848,-153.79,0.00042877,30]
[403774720,1769532651869,-150.0,0.00042877,30]
[403774722,1769532651882,-150.0,0.00042877,30]
[403774725,1769532651902,-200.0,0.000429,120]
[403774727,1769532651914,-152.0,0.000429,120]
[403774729,1769532651927,-23518.75301099,0.00042933,30]
[403774732,1769532651940,-469.7233,0.0004295,120]
[403774734,1769532651953,-500.0,0.00043,2]
[403774736,1769532651966,-500.03670405,0.00043,120]
[403774739,1769532651979,-471.0,0.00043,120]
[403774741,1769532651991,-500.0,0.00043,120]
[403774743,1769532652004,-2831.0,0.00043027,16]
[403774746,1769532652016,-1361.2,0.00043036,120]
[403774748,1769532652029,-839.0,0.0004304,16]
[403774750,1769532652042,-1505.69398611,0.00043125,28]
[403774753,1769532652055,-262.5797544,0.00043125,17]
[403774755,1769532652068,-380.0,0.00043144,2]
[403774757,1769532652080,-1362.32301499,0.00043162,120]
[403774760,1769532652092,-363.0,0.00043184,2]
[403774762,1769532652105,-381.0,0.00043201,2]
[403774764,1769532652118,-151.0,0.00043202,20]
[403774767,1769532652132,-151.0,0.00043202,10]
[403774769,1769532652144,-151.0,0.00043202,10]
[403774771,1769532652157,-247.273128,0.00043202,120]
[403774774,1769532652171,-151.0,0.00043202,120]
[403774776,1769532652184,-151.0,0.00043202,120]
[403774779,1769532652197,-181.25824,0.00043202,120]
[403774780,1769532652210,-151.0,0.00043202,120]
[403774781,1769532652222,-225.135,0.00043202,120]
[403774782,1769532652235,-225.135,0.00043202,120]
[403774783,1769532652248,-225.135,0.00043202,120]
[403774784,1769532652261,-225.135,0.00043202,120]
[403774785,1769532652273,-151.0,0.00043202,120]
[403774786,1769532652286,-380.0,0.0004321,2]
[403774787,1769532652300,-151.0,0.00043214,120]
[403774788,1769532652312,-151.0,0.00043214,120]
[403774789,1769532652324,-69014.71899634,0.00043217,2]
[403774790,1769532652337,-994.77282687,0.00043217,120]
[403774791,1769532652350,-380.0,0.00043217,2]
[403774792,1769532652362,-151.0,0.00043217,120]
[403774793,1769532652375,-336.718328,0.00043217,15]
[403774794,1769532652388,-336.718328,0.00043217,15]
[403774795,1769532652400,-336.718328,0.00043217,15]
[403774796,1769532652412,-336.718328,0.00043217,15]
[403774797,1769532652425,-151.0,0.00043217,120]
[403774798,1769532652438,-151.0,0.00043217,120]
[403774799,1769532652451,-151.0,0.00043217,120]
[403774800,1769532652463,-151.0,0.00043217,120]
[403774803,1769532652476,-195.49735,0.00043217,120]
[403774805,1769532652488,-151.0,0.00043217,120]
[403774807,1769532652501,-151.0,0.00043217,120]
[403774808,1769532652514,-211.366842,0.00043217,120]
[403774809,1769532652527,-151.0,0.00043217,120]
[403774810,1769532652540,-151.0,0.00043217,120]
[403774811,1769532652552,-151.0,0.00043217,120]
[403774812,1769532652567,-151.0,0.00043217,120]
[403774813,1769532652580,-228.885619,0.00043217,120]
[403774814,1769532652593,-228.885619,0.00043217,120]
[403774815,1769532652606,-151.0,0.00043217,120]
[403774816,1769532652619,-228.885619,0.00043217,120]
[403774817,1769532652631,-151.0,0.00043217,120]
[403774818,1769532652644,-228.885619,0.00043217,120]
[403774819,1769532652657,-151.0,0.00043217,120]
[403774820,1769532652671,-151.0,0.00043217,120]
[403774821,1769532652683,-151.0,0.00043217,120]
[403774822,1769532652697,-151.0,0.00043217,120]
[403774823,1769532652711,-151.0,0.00043217,120]
[403774824,1769532652723,-153.918345,0.00043217,120]
[403774827,1769532652737,-151.0,0.00043217,120]
[403774829,1769532652750,-151.0,0.00043217,120]
[403774831,1769532652767,-418.872168,0.00043217,120]
[403774833,1769532652779,-418.872168,0.00043217,120]
[403774836,1769532652792,-418.872168,0.00043217,120]
[403774838,1769532652804,-418.872168,0.00043217,120]
[403774840,1769532652817,-151.0,0.00043217,30]
[403774841,1769532652830,-151.0,0.00043217,120]
[403774842,1769532652843,-265.541141,0.00043217,120]
[403774843,1769532652855,-225.410443,0.00043217,120]
[403774844,1769532652868,-225.410443,0.00043217,120]
[403774846,1769532652881,-225.410443,0.00043217,120]
[403774847,1769532652897,-225.410443,0.00043217,120]
[403774849,1769532652910,-151.0,0.00043217,120]
[403774850,1769532652923,-151.0,0.00043217,120]
[403774851,1769532652937,-270.402192,0.00043217,120]
[403774852,1769532652949,-151.0,0.00043217,120]
[403774853,1769532652962,-270.402192,0.00043217,120]
[403774854,1769532652974,-151.0,0.00043217,120]
[403774855,1769532652986,-270.402192,0.00043217,120]
[403774856,1769532652998,-151.0,0.00043217,120]
[403774857,1769532653010,-270.402192,0.00043217,120]
[403774858,1769532653023,-227.22708,0.00043217,120]
[403774859,1769532653035,-464.384199,0.00043217,120]
[403774860,1769532653048,-464.384199,0.00043217,120]
[403774861,1769532653060,-151.0,0.00043217,120]
[403774862,1769532653072,-464.384199,0.00043217,120]
[403774863,1769532653085,-235.024817,0.00043217,120]
[403774864,1769532653097,-151.0,0.00043217,120]
[403774865,1769532653110,-464.384199,0.00043217,120]
[403774866,1769532653123,-235.024817,0.00043217,120]
[403774867,1769532653137,-151.0,0.00043217,120]
[403774868,1769532653151,-356.259469,0.00043217,120]
[403774869,1769532653164,-235.024817,0.00043217,120]
[403774870,1769532653177,-278.063553,0.00043217,120]
[403774871,1769532653190,-356.259469,0.00043217,120]
[403774872,1769532653203,-235.024817,0.00043217,120]
[403774873,1769532653216,-356.259469,0.00043217,120]
[403774874,1769532653229,-356.259469,0.00043217,120]
[403774875,1769532653241,-151.0,0.00043217,120]
[403774876,1769532653255,-151.0,0.00043217,120]
[403774877,1769532653267,-151.0,0.00043217,120]
[403774878,1769532653286,-267.054183,0.00043217,120]
[403774879,1769532653299,-151.0,0.00043217,120]
[403774880,1769532653312,-267.054183,0.00043217,120]
[403774881,1769532653325,-267.054183,0.00043217,120]
[403774882,1769532653339,-197.032782,0.00043217,120]
[403774883,1769532653352,-267.054183,0.00043217,120]
[403774884,1769532653364,-197.032782,0.00043217,120]
[403774885,1769532653376,-197.032782,0.00043217,120]
[403774886,1769532653388,-197.032782,0.00043217,120]
[403774887,1769532653402,-151.0,0.00043217,120]
[403774888,1769532653414,-151.0,0.00043217,120]
[403774889,1769532653431,-151.0,0.00043217,120]
[403774890,1769532653443,-151.0,0.00043217,120]
[403774891,1769532653456,-151.0,0.00043217,120]
[403774892,1769532653468,-151.0,0.00043217,120]
[403774893,1769532653480,-151.0,0.00043217,120]
[403774894,1769532653492,-151.0,0.00043217,120]
[403774895,1769532653504,-223.198016,0.00043217,120]
[403774896,1769532653517,-364.197061,0.00043217,120]
[403774897,1769532653529,-364.197061,0.00043217,120]
[403774898,1769532653542,-364.197061,0.00043217,120]
[403774899,1769532653555,-908.630524,0.00043217,28]
[403774900,1769532653568,-364.197061,0.00043217,120]
[403774901,1769532653581,-207.904556,0.00043217,120]
[403774902,1769532653594,-908.630524,0.00043217,28]
[403774903,1769532653607,-151.0,0.00043217,120]
[403774904,1769532653620,-908.630524,0.00043217,28]
[403774905,1769532653632,-151.0,0.00043217,120]
[403774906,1769532653644,-908.630524,0.00043217,28]
[403774907,1769532653657,-151.0,0.00043217,120]
[403774908,1769532653669,-151.0,0.00043217,120]
[403774909,1769532653681,-151.0,0.00043217,120]
[403774910,1769532653693,-151.0,0.00043217,120]
[403774911,1769532653705,-151.0,0.00043217,120]
[403774912,1769532653717,-151.0,0.00043217,120]
[403774913,1769532653729,-151.0,0.00043217,120]
[403774914,1769532653742,-151.0,0.00043217,120]
[403774915,1769532653754,-271.365074,0.00043217,120]
[403774916,1769532653766,-151.0,0.00043217,120]
[403774917,1769532653778,-151.0,0.00043217,120]
[403774918,1769532653790,-271.365074,0.00043217,120]
[403774919,1769532653803,-151.0,0.00043217,120]
[403774920,1769532653815,-271.365074,0.00043217,120]
[403774921,1769532653827,-199.597287,0.00043217,120]
[403774922,1769532653839,-271.365074,0.00043217,120]
[403774923,1769532653852,-199.597287,0.00043217,120]
[403774924,1769532653864,-199.597287,0.00043217,120]
[403774925,1769532653875,-151.0,0.00043217,120]
[403774926,1769532653889,-199.597287,0.00043217,120]
[403774927,1769532653905,-151.0,0.00043217,120]
[403774928,1769532653917,-151.0,0.00043217,120]
[403774929,1769532653930,-151.0,0.00043217,120]
[403774930,1769532653943,-500.621555,0.00043217,120]
[403774931,1769532653956,-151.0,0.00043217,120]
[403774932,1769532653969,-500.621555,0.00043217,120]
[403774933,1769532653981,-500.621555,0.00043217,120]
[403774934,1769532653993,-500.621555,0.00043217,120]
[403774935,1769532654006,-151.0,0.00043217,120]
[403774936,1769532654018,-151.0,0.00043217,120]
[403774937,1769532654031,-151.0,0.00043217,120]
[403774938,1769532654042,-506.877308,0.00043217,120]
[403774939,1769532654055,-506.877308,0.00043217,120]
[403774940,1769532654068,-151.0,0.00043217,120]
[403774941,1769532654080,-506.877308,0.00043217,120]
[403774942,1769532654093,-151.0,0.00043217,120]
[403774943,1769532654105,-151.0,0.00043217,120]
[403774944,1769532654117,-506.877308,0.00043217,120]
[403774945,1769532654129,-151.0,0.00043217,120]
[403774946,1769532654142,-151.0,0.00043217,120]
[403774947,1769532654154,-151.0,0.00043217,120]
[403774948,1769532654166,-151.0,0.00043217,120]
[403774949,1769532654179,-151.0,0.00043217,120]
[403774950,1769532654191,-210.220901,0.00043217,120]
[403774951,1769532654203,-151.0,0.00043217,120]
[403774952,1769532654215,-235.77089,0.00043217,120]
[403774953,1769532654227,-151.0,0.00043217,120]
[403774954,1769532654239,-235.77089,0.00043217,120]
[403774955,1769532654252,-151.0,0.00043217,120]
[403774956,1769532654264,-235.77089,0.00043217,120]
[403774957,1769532654275,-235.77089,0.00043217,120]
[403774958,1769532654287,-151.0,0.00043217,120]
[403774959,1769532654299,-151.0,0.00043217,120]
[403774960,1769532654312,-151.0,0.00043217,120]
[403774961,1769532654323,-151.0,0.00043217,120]
[403774962,1769532654335,-151.0,0.00043217,60]
[403774963,1769532654347,-151.0,0.00043217,120]
[403774964,1769532654870,-151.0,0.00043217,60]
[403774965,1769532654904,-288.283762,0.00043217,120]
[403774966,1769532654923,-151.0,0.00043217,7]
[403774967,1769532654937,-151.0,0.00043217,120]
[403774968,1769532654946,-151.0,0.00043217,7]
[403774969,1769532654955,-151.0,0.00043217,120]
[403774970,1769532654967,-151.0,0.00043217,120]
[403774971,1769532654976,-151.0,0.00043217,7]
[403774972,1769532654986,-151.0,0.00043217,120]
[403774973,1769532654995,-151.0,0.00043217,120]
[403774974,1769532655005,-286.14264592,0.00043217,7]
[403774975,1769532655014,-151.0,0.00043217,120]
[403774976,1769532655024,-183.06537831,0.00043217,120]
[403774977,1769532655034,-151.0,0.00043217,120]
[403774978,1769532655045,-210.420096,0.00043217,120]
[403774979,1769532655054,-151.0,0.00043217,120]
[403774980,1769532655064,-151.0,0.00043217,120]
[403774981,1769532655073,-202.745891,0.00043217,120]
[403774982,1769532655082,-278.635419,0.00043217,120]
[403774983,1769532655092,-151.0,0.00043217,120]
[403774984,1769532655101,-278.635419,0.00043217,120]
[403774985,1769532655111,-214.744883,0.00043217,14]
[403774986,1769532655121,-278.635419,0.00043217,120]
[403774987,1769532655130,-214.744883,0.00043217,14]
[403774988,1769532655139,-278.635419,0.00043217,120]
[403774989,1769532655150,-151.0,0.00043217,120]
[403774990,1769532655160,-214.744883,0.00043217,14]
[403774991,1769532655170,-151.0,0.00043217,120]
[403774992,1769532655180,-392.477946,0.00043217,90]
[403774993,1769532655191,-151.0,0.00043217,120]
[403774994,1769532655201,-214.744883,0.00043217,14]
[403774995,1769532655210,-684861.70531772,0.00043217,30]
[403774996,1769532655971,-999.0,0.00043217,30]
[403774997,1769532656201,-151.0,0.000405,120]
[403774998,1769532656213,-179.148721,0.000405,120]
[403774999,1769532656224,-392.477946,0.000405,90]
[403775000,1769532656234,-151.0,0.000405,120]
[403775001,1769532656245,-392.477946,0.000405,90]
[403775002,1769532656254,-179.148721,0.000405,120]
[403775003,1769532656267,-151.0,0.00043217,120]
[403775004,1769532656278,-179.148721,0.00043217,120]
[403775005,1769532656289,-392.477946,0.00043217,90]
[403775006,1769532656299,-151.0,0.00043217,120]
[403775007,1769532656309,-392.477946,0.00043217,90]
[403775008,1769532656319,-179.148721,0.00043217,120]
[403775009,1769532656327,-228.33422506,0.00043217,30]
[403775010,1769532656364,-151.0,0.000405,120]
[403775011,1769532656374,-246.68740829,0.00043217,30]
[403775012,1769532656385,-559.60118243,0.00043217,30]
[403775013,1769532656399,-1753.37026475,0.00043217,30]
[403775014,1769532656634,-151.0,0.00018294,2]
[403775015,1769532656643,-151.0,0.00018294,2]
[403775016,1769532656653,-179.148721,0.000405,120]
[403775017,1769532656662,-392.477946,0.000405,90]
[403775018,1769532656671,-43.9779389,0.000405,120]
[403775019,1769532656685,-107.0220611,0.000405,120]
[403775020,1769532656695,-151.0,0.000405,30]
[403775021,1769532656704,-179.148721,0.000405,120]
[403775022,1769532656713,-216.87,0.00042603,30]
[403775023,1769532656722,-212.131829,0.00043217,120]
[403775024,1769532656731,-179.148721,0.00043217,120]
[403775025,1769532656740,-392.477946,0.00043217,90]
[403775026,1769532656749,-151.0,0.00043217,120]
[403775027,1769532656758,-151.0,0.00043217,30]
[403775028,1769532656767,-179.148721,0.00043217,120]
[403775029,1769532656776,-31390.22084031,0.00043217,30]
[403775030,1769532656791,-269378.98458064,0.00043217,30]
[403775031,1769532656805,-1854.99993,0.00043217,30]
[403775032,1769532656816,-20024.23379703,0.00043217,30]
[403775033,1769532656827,-713626.90295592,0.00043217,30]
[403775034,1769532656837,-373.97237619,0.00043217,30]
[403775035,1769532723520,10000.01,0.00015096,2]
[403775036,1769532723544,3033.6689,0.00015096,2]
[403775037,1769532763059,6966.3411,0.00015095,2]
[403775038,1769532763095,10000.01,0.00015095,2]
[403775039,1769532763134,10000.01,0.00015095,2]
[403775040,1769532763172,10000.01,0.00015095,2]
[403775041,1769532763211,10000.01,0.00015095,2]
[403775042,1769532763248,10000.01,0.00015095,2]
[403775043,1769532763284,10000.01,0.00015095,2]
[403775044,1769532763319,10000.01,0.00015095,2]
[403775045,1769532763350,10000.01,0.00015095,2]
[403775046,1769532763385,10000.01,0.00015095,2]
[403775047,1769532765056,-1017.01144558,0.00015095,2]
[403775048,1769532768168,-233.42388047,0.00015095,2]
[403775049,1769532770357,-167.45274,0.00015095,2]
[403775050,1769532778009,-470.22536465,0.00015095,2]
[403775051,1769532779258,-421.2389542,0.00015095,2]
[403775052,1769532781316,-1006.0654149,0.00015095,2]
[403775054,1769532783298,-257.38341626,0.00015095,2]
[403775055,1769532785290,-231.58169979,0.00015095,2]
[403775056,1769532786743,-167.39509096,0.00015095,2]
[403775057,1769532789624,-167.31867766,0.00015095,2]
[403775058,1769532791592,-165.22858268,0.00015095,2]
[403775059,1769532793573,-271.15589761,0.00015095,2]
[403775060,1769532795662,-201.62648842,0.00015095,2]
[403775061,1769532798230,-249.57238935,0.00015095,2]
[403775062,1769532799743,-223.16741288,0.00015095,2]
[403775063,1769532801158,-173.45650255,0.00015095,2]
[403775064,1769532803937,-242.01231233,0.00015095,2]
[403775065,1769532805683,-241.31363509,0.00015095,2]
[403775066,1769532807747,-231.22923675,0.00015095,2]
[403775067,1769532812099,-260.4172349,0.00015095,2]
[403775068,1769532814705,-190.59259671,0.00015095,2]
[403775069,1769532816216,-242.34040579,0.00015095,2]
[403775070,1769532818679,-168.05363435,0.00015095,2]
[403775071,1769532821573,-323.89142777,0.00015095,2]
[403775072,1769532823950,-263.21979285,0.00015095,2]
[403775073,1769532826052,-353.50363538,0.00015095,2]
[403775074,1769532827550,-267.93863731,0.00015095,2]
[403775075,1769532829651,-267.66914738,0.00015095,2]
[403775076,1769532832808,-170.25575688,0.00015095,2]
[403775077,1769532836172,-300.0,0.00015095,2]
[403775078,1769532838230,-183.92092874,0.00015095,2]
[403775079,1769532841256,-199.60290876,0.00015095,2]
[403775081,1769532842744,-159.57917897,0.00015095,2]
[403775082,1769532846556,-191.4208212,0.00015095,2]
[403775083,1769532849816,-300.0,0.00015095,2]
[403775084,1769532853029,-288.79765623,0.00015095,2]
[403775086,1769532872947,288.70416253,0.00015094,2]
[403775087,1769532872995,564.00636853,0.00015094,2]
[403775088,1769532873030,500.0,0.00015094,2]
[403775089,1769532873062,442.31010802,0.00015094,2]
[403775090,1769532873214,500.0,0.00015094,2]
[403775091,1769532873496,500.0,0.00015094,2]
[403775092,1769532874028,270.79458439,0.00015094,2]
[403775093,1769532874136,500.0,0.00015094,2]
[403775094,1769532876915,500.0,0.00015094,2]
[403775095,1769532876955,500.0,0.00015094,2]
[403775096,1769532876984,500.0,0.00015094,2]
[403775097,1769532877016,500.0,0.00015094,2]
[403775098,1769532877058,500.0,0.00015094,2]
[403775099,1769532877092,647.83954011,0.00015094,2]
[403775100,1769532877123,500.0,0.00015094,2]
[403775101,1769532877159,500.0,0.00015094,2]
[403775102,1769532877201,500.0,0.00015094,2]
[403775103,1769532877233,500.0,0.00015094,2]
[403775104,1769532877262,500.0,0.00015094,2]
[403775105,1769532877291,500.0,0.00015094,2]
[403775106,1769532877335,286.35523642,0.00015094,2]
[403775107,1769532877651,213.64476358,0.00015094,2]
[403775108,1769532878436,193.82783315,0.00015094,2]
[403775109,1769532878470,500.0,0.00015094,2]
[403775110,1769532878509,586.82063595,0.00015094,2]
[403775111,1769532878539,500.0,0.00015094,2]
[403775112,1769532878574,287.95251491,0.00015094,2]
[403775113,1769532878618,500.0,0.00015094,2]
[403775114,1769532878648,333.46003465,0.00015094,2]
[403775115,1769532878695,500.0,0.00015094,2]
[403775116,1769532878731,500.0,0.00015094,2]
[403775117,1769532878777,500.0,0.00015094,2]
[403775118,1769532878845,500.0,0.00015094,2]
[403775119,1769532878943,500.0,0.00015094,2]
[403775120,1769532879006,500.0,0.00015094,2]
[403775121,1769532879070,500.0,0.00015094,2]
[403775122,1769532879139,500.0,0.00015094,2]
[403775123,1769532879187,500.0,0.00015094,2]
[403775124,1769532879243,500.0,0.00015094,2]
[403775125,1769532879289,500.0,0.00015094,2]
[403775126,1769532879334,500.0,0.00015094,2]
[403775127,1769532879393,500.0,0.00015094,2]
[403775128,1769532879436,384.30421776,0.00015094,2]
[403775129,1769532879462,115.69578224,0.00015094,2]
[403775130,1769532879510,500.0,0.00015094,2]
[403775131,1769532879559,500.0,0.00015094,2]
[403775132,1769532879603,500.0,0.00015094,2]
[403775133,1769532879649,500.0,0.00015094,2]
[403775134,1769532879691,500.0,0.00015094,2]
[403775135,1769532879765,500.0,0.00015094,2]
[403775136,1769532879814,500.0,0.00015094,2]
[403775137,1769532879872,500.0,0.00015094,2]
[403775138,1769532880371,500.0,0.00015094,2]
[403775139,1769532880424,500.0,0.00015094,2]
[403775140,1769532880469,500.0,0.00015094,2]
[403775141,1769532880502,500.0,0.00015094,2]
[403775142,1769532880538,500.0,0.00015094,2]
[403775143,1769532880574,500.0,0.00015094,2]
[403775144,1769532880617,245.03107795,0.00015094,2]
[403775145,1769532880649,500.0,0.00015094,2]
[403775146,1769532880688,500.0,0.00015094,2]
[403775147,1769532880721,500.0,0.00015094,2]
[403775148,1769532880752,500.0,0.00015094,2]
[403775149,1769532880794,500.0,0.00015094,2]
[403775150,1769532880826,139.28313981,0.00015094,2]
[403775151,1769532880850,360.71686019,0.00015094,2]
[403775152,1769532880882,500.0,0.00015094,2]
[403775153,1769532880914,500.0,0.00015094,2]
[403775154,1769532880948,500.0,0.00015094,2]
[403775155,1769532880999,500.0,0.00015094,2]
[403775156,1769532881059,500.0,0.00015094,2]
[403775157,1769532881126,500.0,0.00015094,2]
[403775158,1769532881176,500.0,0.00015094,2]
[403775159,1769532881212,500.0,0.00015094,2]
[403775160,1769532888115,723.59703646,0.00015094,2]
[403775161,1769532888153,723.59703646,0.00015094,2]
[403775162,1769532888191,723.59703646,0.00015094,2]
[403775163,1769532888228,723.59703646,0.00015094,2]
[403775164,1769532888265,723.59703646,0.00015094,2]
[403775165,1769532888313,723.59703646,0.00015094,2]
[403775166,1769532888355,723.59703646,0.00015094,2]
[403775167,1769532888393,574.11388459,0.00015094,2]
[403775168,1769532888427,149.48315187,0.00015094,2]
[403775169,1769532889622,723.59703646,0.00015094,2]
[403775170,1769532889660,723.59703646,0.00015094,2]
[403775171,1769532889699,723.59703646,0.00015094,2]
[403775172,1769532889737,723.59703646,0.00015094,2]
[403775173,1769532889776,723.59703646,0.00015094,2]
[403775174,1769532889818,723.59703646,0.00015094,2]
[403775175,1769532889868,723.59703646,0.00015094,2]
[403775176,1769532889922,723.59703646,0.00015094,2]
[403775177,1769532889963,723.59703646,0.00015094,2]
[403775178,1769532890012,723.59703646,0.00015094,2]
[403775179,1769532890056,723.59703646,0.00015094,2]
[403775180,1769532890103,723.59703646,0.00015094,2]
[403775181,1769532890146,723.59703646,0.00015094,2]
[403775182,1769532890187,443.76537415,0.00015094,2]
[403775183,1769532890220,279.83166231,0.00015094,2]
[403775184,1769532890265,723.59703646,0.00015094,2]
[403775185,1769532890310,723.59703646,0.00015094,2]
[403775186,1769532890353,723.59703646,0.00015094,2]
[403775187,1769532890395,723.59703646,0.00015094,2]
[403775188,1769532901283,356.0,0.00015094,2]
[403775190,1769532923095,500.0,0.00015094,2]
[403775192,1769532932925,186.47705204,0.00015094,2]
[403775193,1769532932984,500.0,0.00015094,2]
[403775195,1769532962126,300.0,0.00015094,2]
[403775197,1769532964812,500.0,0.00015094,2]
[403775305,1769533014592,500.0,0.00015094,2]
[403775317,1769533021265,300.0,0.00015094,2]
[403775408,1769533059030,500.0,0.00015094,2]
[403775436,1769533122150,564.6352448,0.00015018,2]
[403775437,1769533127002,500.0,0.00015094,2]
[403775438,1769533141113,500.0,0.00015094,2]
[403775439,1769533141166,500.0,0.00015094,2]
[403775448,1769533199130,500.0,0.00015094,2]
[403775449,1769533201830,300.0,0.00015094,2]
[403775452,1769533210838,318.67789501,0.00015085,2]
[403775453,1769533210862,1627.82210499,0.00015085,2]
[403775454,1769533211068,1946.5,0.00015085,2]
[403775456,1769533211278,1946.5,0.00015085,2]
[403775457,1769533211498,1946.5,0.00015085,2]
[403775458,1769533211744,1946.5,0.00015085,2]
[403775460,1769533212943,586.18789501,0.00015085,2]
[403775461,1769533212965,378.77210499,0.00015085,2]
[403775462,1769533213485,964.96,0.00015085,2]
[403775466,1769533223605,500.0,0.00015094,2]
[403775469,1769533232840,500.0,0.00015094,2]
[403775472,1769533251340,500.0,0.00015094,2]
[403775476,1769533282722,500.0,0.00015094,2]
[403775478,1769533293225,2717.692,0.00014793,2]
[403775479,1769533293266,218.325,0.00014793,2]
[403775483,1769533314115,500.0,0.00015094,2]
[403775485,1769533333836,500.0,0.00015095,2]
[403775486,1769533334457,255.09119535,0.00015095,2]
[403775487,1769533335937,-500.0,0.00015095,2]
[403775488,1769533335968,-500.0,0.00015095,2]
[403775489,1769533335998,-500.0,0.00015095,2]
[403775490,1769533336031,-500.0,0.00015095,2]
[403775495,1769533343002,-1617.88173961,0.00015095,2]
[403775496,1769533349211,-10000.01,0.00015095,2]
[403775499,1769533501266,295.0,0.00015094,2]
[403775501,1769533550816,568.68,0.00015094,2]
[403775524,1769533801317,9136.33,0.00014995,2]
[403775525,1769533801349,10000.01,0.00014995,2]
[403775526,1769533801376,10000.01,0.00014995,2]
[403775527,1769533801401,10000.01,0.00014995,2]
[403775528,1769533801426,10000.01,0.00014995,2]
[403775529,1769533801450,10000.01,0.00014995,2]
[403775530,1769533801474,10000.01,0.00014995,2]
[403775531,1769533801498,10000.01,0.00014995,2]
[403775532,1769533801523,10000.01,0.00014995,2]
[403775533,1769533801556,19000.0,0.00014995,2]
[403775534,1769533801593,891863.59,0.00014995,2]
[403775540,1769533831977,-195.0,0.00015095,2]
[403775541,1769533831987,-250.0,0.00015095,2]
[403775542,1769533831996,-250.0,0.0001512,2]
[403775543,1769533832006,-195.0,0.0001512,2]
[403775544,1769533832015,-500.0,0.00015195,2]
[403775545,1769533832025,-500.0,0.00016438,2]
[403775546,1769533832034,-351.65903586,0.00016438,2]
[403775547,1769533832046,-148.34096414,0.00016438,2]
[403775548,1769533832056,-500.0,0.00016438,2]
[403775549,1769533832065,-252.77903586,0.00016438,2]
[403775550,1769533832135,-247.22096414,0.00016438,2]
[403775551,1769533832144,-24.6849048,0.00016438,2]